[Event "Titled Tuesday Blitz February 28 Early 2023"]
[White "Daneshvar, Bardiya"]
[Black "Vlassov, Nikolai"]
[WhiteFideId "12576468"]
[BlackFideId "4103360"]
[WhiteElo "2482"]
[BlackElo "2324"]
[Result "1-0"]
[Round "02"]
[TimeControl "180+2"]
[Date "2023.02.28"]
[WhiteClock "0:01:00"]
[BlackClock "0:00:12"]

1. b3 {[%clk 0:02:58]}  e5 {[%clk 0:02:59]} 2. Bb2 {[%clk 0:02:58]}  Nc6 {[%clk 0:02:56]} 3. e3 {[%clk 0:02:58]}  a6 {[%clk 0:02:56]} 4. Nf3 {[%clk 0:02:57]}  e4 {[%clk 0:02:55]} 5. Nd4 {[%clk 0:02:57]}  Qf6 {[%clk 0:02:54]} 6. Qc1 {[%clk 0:02:49]}  Qg6 {[%clk 0:02:53]} 7. Nc3 {[%clk 0:02:45]}  Nf6 {[%clk 0:02:42]} 8. Nce2 {[%clk 0:02:44]}  Bc5 {[%clk 0:02:36]} 9. Nf4 {[%clk 0:02:43]}  Qh6 {[%clk 0:02:16]} 10. Nf5 {[%clk 0:02:36]}  Qg5 {[%clk 0:02:16]} 11. Ng3 {[%clk 0:02:37]}  h5 {[%clk 0:01:37]} 12. h4 {[%clk 0:02:18]}  Qh6 {[%clk 0:01:37]} 13. Nf5 {[%clk 0:01:55]}  Qh7 {[%clk 0:01:35]} 14. Nxg7+ {[%clk 0:01:56]}  Qxg7 {[%clk 0:01:30]} 15. Nd5 {[%clk 0:01:57]}  Be7 {[%clk 0:01:12]} 16. Nxc7+ {[%clk 0:01:56]}  Kf8 {[%clk 0:01:04]} 17. Nxa8 {[%clk 0:01:57]}  Bd8 {[%clk 0:01:05]} 18. a4 {[%clk 0:01:33]}  Qg6 {[%clk 0:00:57]} 19. a5 {[%clk 0:01:27]}  Nxa5 {[%clk 0:00:52]} 20. Bxf6 {[%clk 0:01:21]}  Qxf6 {[%clk 0:00:45]} 21. Rxa5 {[%clk 0:01:22]}  Bxa5 {[%clk 0:00:44]} 22. Qa3+ {[%clk 0:01:21]}  Kg7 {[%clk 0:00:42]} 23. Qxa5 {[%clk 0:01:21]}  b5 {[%clk 0:00:39]} 24. Qc3 {[%clk 0:01:13]}  Qxc3 {[%clk 0:00:26]} 25. dxc3 {[%clk 0:01:14]}  d5 {[%clk 0:00:19]} 26. c4 {[%clk 0:01:03]}  dxc4 {[%clk 0:00:16]} 27. bxc4 {[%clk 0:01:04]}  Bb7 {[%clk 0:00:16]} 28. Nb6 {[%clk 0:01:02]}  b4 {[%clk 0:00:14]} 29. c5 {[%clk 0:01:02]}  a5 {[%clk 0:00:14]} 30. Bb5 {[%clk 0:01:01]}  Rd8 {[%clk 0:00:12]} 31. Ke2 {[%clk 0:01:00]} 1-0


[Site "https://www.chess.com"]

[Event "Titled Tuesday Blitz February 28 Early 2023"]
[White "Carnicelli, Valerio"]
[Black "Tabatabaei, M. Amin"]
[WhiteFideId "856185"]
[BlackFideId "12521213"]
[WhiteElo "2306"]
[BlackElo "2565"]
[Result "0-1"]
[Round "02"]
[TimeControl "180+2"]
[Date "2023.02.28"]
[WhiteClock "0:00:19"]
[BlackClock "0:00:57"]

1. e4 {[%clk 0:03:00]}  c6 {[%clk 0:02:55]} 2. Nc3 {[%clk 0:02:57]}  d5 {[%clk 0:02:56]} 3. Nf3 {[%clk 0:02:58]}  dxe4 {[%clk 0:02:56]} 4. Nxe4 {[%clk 0:02:58]}  Nf6 {[%clk 0:02:57]} 5. Qe2 {[%clk 0:02:57]}  Nxe4 {[%clk 0:02:58]} 6. Qxe4 {[%clk 0:02:57]}  Be6 {[%clk 0:02:59]} 7. b3 {[%clk 0:02:55]}  Nd7 {[%clk 0:02:57]} 8. Bb2 {[%clk 0:02:55]}  Bd5 {[%clk 0:02:46]} 9. Qe2 {[%clk 0:02:54]}  e6 {[%clk 0:02:42]} 10. g3 {[%clk 0:02:36]}  Nf6 {[%clk 0:02:23]} 11. Bg2 {[%clk 0:02:34]}  Be7 {[%clk 0:02:16]} 12. O-O {[%clk 0:02:25]}  O-O {[%clk 0:02:16]} 13. c4 {[%clk 0:02:18]}  Be4 {[%clk 0:02:01]} 14. Bxf6 {[%clk 0:01:48]}  Bxf3 {[%clk 0:02:01]} 15. Qxf3 {[%clk 0:01:46]}  Bxf6 {[%clk 0:02:02]} 16. Rad1 {[%clk 0:01:45]}  a5 {[%clk 0:02:02]} 17. Qe4 {[%clk 0:01:34]}  Bd4 {[%clk 0:02:00]} 18. Kh1 {[%clk 0:01:32]}  Qd6 {[%clk 0:01:59]} 19. f4 {[%clk 0:01:30]}  g6 {[%clk 0:01:58]} 20. Bf3 {[%clk 0:01:20]}  Rfd8 {[%clk 0:01:55]} 21. Rfe1 {[%clk 0:01:16]}  a4 {[%clk 0:01:56]} 22. Qc2 {[%clk 0:01:10]}  axb3 {[%clk 0:01:54]} 23. axb3 {[%clk 0:01:10]}  Ra3 {[%clk 0:01:52]} 24. Rb1 {[%clk 0:00:59]}  Qb4 {[%clk 0:01:50]} 25. Re2 {[%clk 0:00:56]}  Qa5 {[%clk 0:01:37]} 26. b4 {[%clk 0:00:43]}  Qa7 {[%clk 0:01:33]} 27. Bg2 {[%clk 0:00:33]}  Ra2 {[%clk 0:01:30]} 28. Qe4 {[%clk 0:00:29]}  Bf6 {[%clk 0:01:22]} 29. d3 {[%clk 0:00:22]}  Ra3 {[%clk 0:01:00]} 30. Rd1 {[%clk 0:00:20]}  Qa4 {[%clk 0:00:57]} 31. b5 {[%clk 0:00:19]}  Qxd1+ {[%clk 0:00:57]} 0-1


[Site "https://www.chess.com"]

[Event "Titled Tuesday Blitz February 28 Early 2023"]
[White "Babazada, Khazar"]
[Black "Volkov, Maksim"]
[WhiteFideId "13413554"]
[BlackFideId "54123070"]
[WhiteElo "2359"]
[BlackElo "2328"]
[Result "1/2-1/2"]
[Round "02"]
[TimeControl "180+2"]
[Date "2023.02.28"]
[WhiteClock "0:00:05"]
[BlackClock "0:00:03"]

1. e4 {[%clk 0:03:00]}  c5 {[%clk 0:02:59]} 2. Nf3 {[%clk 0:02:58]}  d6 {[%clk 0:03:00]} 3. c3 {[%clk 0:02:58]}  Nf6 {[%clk 0:02:59]} 4. Bd3 {[%clk 0:02:58]}  Bg4 {[%clk 0:02:58]} 5. h3 {[%clk 0:02:58]}  Bh5 {[%clk 0:02:58]} 6. Bc2 {[%clk 0:02:58]}  Nc6 {[%clk 0:02:54]} 7. d3 {[%clk 0:02:57]}  e6 {[%clk 0:02:54]} 8. O-O {[%clk 0:02:51]}  Be7 {[%clk 0:02:54]} 9. Nbd2 {[%clk 0:02:49]}  O-O {[%clk 0:02:53]} 10. Re1 {[%clk 0:02:49]}  b5 {[%clk 0:02:52]} 11. Nf1 {[%clk 0:02:49]}  b4 {[%clk 0:02:51]} 12. Ng3 {[%clk 0:02:49]}  Bg6 {[%clk 0:02:50]} 13. Ba4 {[%clk 0:02:38]}  Qb6 {[%clk 0:02:44]} 14. Be3 {[%clk 0:02:32]}  Qa6 {[%clk 0:02:21]} 15. c4 {[%clk 0:02:28]}  Ne5 {[%clk 0:02:17]} 16. Nh4 {[%clk 0:02:01]}  Qa5 {[%clk 0:02:02]} 17. Bc2 {[%clk 0:01:54]}  Nfd7 {[%clk 0:01:54]} 18. Nxg6 {[%clk 0:01:52]}  hxg6 {[%clk 0:01:53]} 19. Nf1 {[%clk 0:01:21]}  Nc6 {[%clk 0:01:50]} 20. Ba4 {[%clk 0:01:08]}  Qc7 {[%clk 0:01:48]} 21. Bxc6 {[%clk 0:01:04]}  Qxc6 {[%clk 0:01:48]} 22. f4 {[%clk 0:01:05]}  Bf6 {[%clk 0:01:47]} 23. Qd2 {[%clk 0:00:59]}  a5 {[%clk 0:01:45]} 24. Nh2 {[%clk 0:00:59]}  a4 {[%clk 0:01:26]} 25. Rac1 {[%clk 0:00:58]}  a3 {[%clk 0:01:25]} 26. b3 {[%clk 0:00:35]}  Bc3 {[%clk 0:01:12]} 27. Rxc3 {[%clk 0:00:35]}  bxc3 {[%clk 0:01:13]} 28. Qxc3 {[%clk 0:00:36]}  d5 {[%clk 0:01:13]} 29. Bf2 {[%clk 0:00:26]}  d4 {[%clk 0:00:54]} 30. Qd2 {[%clk 0:00:26]}  e5 {[%clk 0:00:50]} 31. f5 {[%clk 0:00:23]}  gxf5 {[%clk 0:00:46]} 32. exf5 {[%clk 0:00:23]}  Qf6 {[%clk 0:00:46]} 33. g4 {[%clk 0:00:21]}  g6 {[%clk 0:00:40]} 34. Rf1 {[%clk 0:00:15]}  Rfe8 {[%clk 0:00:37]} 35. Bg3 {[%clk 0:00:15]}  e4 {[%clk 0:00:35]} 36. dxe4 {[%clk 0:00:15]}  Rxe4 {[%clk 0:00:35]} 37. g5 {[%clk 0:00:16]}  Qc6 {[%clk 0:00:33]} 38. Ng4 {[%clk 0:00:16]}  Rae8 {[%clk 0:00:24]} 39. Qf2 {[%clk 0:00:16]}  Re2 {[%clk 0:00:20]} 40. Qf3 {[%clk 0:00:14]}  Qxf3 {[%clk 0:00:20]} 41. Rxf3 {[%clk 0:00:15]}  gxf5 {[%clk 0:00:15]} 42. Rxf5 {[%clk 0:00:14]}  Kg7 {[%clk 0:00:14]} 43. h4 {[%clk 0:00:14]}  Rxa2 {[%clk 0:00:13]} 44. h5 {[%clk 0:00:10]}  Ra1+ {[%clk 0:00:10]} 45. Kg2 {[%clk 0:00:11]}  a2 {[%clk 0:00:11]} 46. g6 {[%clk 0:00:06]}  fxg6 {[%clk 0:00:07]} 47. h6+ {[%clk 0:00:06]}  Kg8 {[%clk 0:00:07]} 48. Rd5 {[%clk 0:00:04]}  Rg1+ {[%clk 0:00:07]} 49. Kxg1 {[%clk 0:00:02]}  a1=Q+ {[%clk 0:00:08]} 50. Kg2 {[%clk 0:00:02]}  Qa2+ {[%clk 0:00:05]} 51. Bf2 {[%clk 0:00:03]}  Qa8 {[%clk 0:00:03]} 52. Kh3 {[%clk 0:00:03]}  Re7 {[%clk 0:00:02]} 53. Bh4 {[%clk 0:00:03]}  Rf7 {[%clk 0:00:02]} 54. Bg3 {[%clk 0:00:02]}  Qc6 {[%clk 0:00:01]} 55. Rd6 {[%clk 0:00:02]}  Qc8 {[%clk 0:00:02]} 56. Kh2 {[%clk 0:00:02]}  Qe8 {[%clk 0:00:03]} 57. Kh3 {[%clk 0:00:02]}  Qf8 {[%clk 0:00:03]} 58. Rxg6+ {[%clk 0:00:02]}  Kh7 {[%clk 0:00:03]} 59. Rg5 {[%clk 0:00:03]}  Nf6 {[%clk 0:00:03]} 60. Ne5 {[%clk 0:00:03]}  Qxh6+ {[%clk 0:00:04]} 61. Bh4 {[%clk 0:00:04]}  Ne4 {[%clk 0:00:03]} 62. Nxf7 {[%clk 0:00:04]}  Nxg5+ {[%clk 0:00:03]} 63. Nxg5+ {[%clk 0:00:04]}  Kg6 {[%clk 0:00:04]} 64. Kg4 {[%clk 0:00:05]}  Qf8 {[%clk 0:00:03]} 65. Nf3 {[%clk 0:00:05]}  Qf5+ {[%clk 0:00:04]} 66. Kg3 {[%clk 0:00:06]}  Qd3 {[%clk 0:00:04]} 67. Be7 {[%clk 0:00:06]}  Qxb3 {[%clk 0:00:03]} 68. Bxc5 {[%clk 0:00:06]}  d3 {[%clk 0:00:03]} 69. Be3 {[%clk 0:00:06]}  Kf6 {[%clk 0:00:01]} 70. Bd4+ {[%clk 0:00:06]}  Ke7 {[%clk 0:00:02]} 71. Bc5+ {[%clk 0:00:06]}  Kd7 {[%clk 0:00:02]} 72. Be3 {[%clk 0:00:06]}  Kc7 {[%clk 0:00:02]} 73. Nd2 {[%clk 0:00:06]}  Qc2 {[%clk 0:00:02]} 74. Kf3 {[%clk 0:00:07]}  Kc6 {[%clk 0:00:03]} 75. Ke4 {[%clk 0:00:07]}  Kd6 {[%clk 0:00:02]} 76. Kd4 {[%clk 0:00:08]}  Ke6 {[%clk 0:00:02]} 77. Ne4 {[%clk 0:00:08]}  Kf5 {[%clk 0:00:02]} 78. Nd2 {[%clk 0:00:07]}  Kg4 {[%clk 0:00:02]} 79. c5 {[%clk 0:00:08]}  Kf5 {[%clk 0:00:02]} 80. Nc4 {[%clk 0:00:08]}  Ke6 {[%clk 0:00:02]} 81. c6 {[%clk 0:00:08]}  Ke7 {[%clk 0:00:02]} 82. Bg5+ {[%clk 0:00:08]}  Ke8 {[%clk 0:00:02]} 83. Bf4 {[%clk 0:00:05]}  Kd8 {[%clk 0:00:02]} 84. Bg5+ {[%clk 0:00:06]}  Kc8 {[%clk 0:00:03]} 85. Bf4 {[%clk 0:00:06]}  Qb3 {[%clk 0:00:02]} 86. Bd2 {[%clk 0:00:04]}  Kc7 {[%clk 0:00:02]} 87. Kc5 {[%clk 0:00:04]}  Qc2 {[%clk 0:00:02]} 88. Bf4+ {[%clk 0:00:05]}  Kd8 {[%clk 0:00:02]} 89. Kd5 {[%clk 0:00:04]}  Kc8 {[%clk 0:00:01]} 90. Nb6+ {[%clk 0:00:04]}  Kd8 {[%clk 0:00:01]} 91. Nc4 {[%clk 0:00:04]}  Kc8 {[%clk 0:00:01]} 92. Bd2 {[%clk 0:00:03]}  Kd8 {[%clk 0:00:02]} 93. Ba5+ {[%clk 0:00:03]}  Kc8 {[%clk 0:00:02]} 94. Bd2 {[%clk 0:00:03]}  Kd8 {[%clk 0:00:03]} 95. Nd6 {[%clk 0:00:03]}  Kc7 {[%clk 0:00:03]} 96. Ba5+ {[%clk 0:00:01]}  Kb8 {[%clk 0:00:03]} 97. c7+ {[%clk 0:00:02]}  Qxc7 {[%clk 0:00:02]} 98. Bxc7+ {[%clk 0:00:03]}  Kxc7 {[%clk 0:00:03]} 99. Nc4 {[%clk 0:00:04]}  d2 {[%clk 0:00:03]} 100. Nxd2 {[%clk 0:00:05]} 1/2-1/2


[Site "https://www.chess.com"]

[Event "Titled Tuesday Blitz February 28 Early 2023"]
[White "Fiorito, Joaquin"]
[Black "Matlakov, Maxim"]
[WhiteFideId "180173"]
[BlackFideId "4168003"]
[WhiteElo "2157"]
[BlackElo "2666"]
[Result "0-1"]
[Round "02"]
[TimeControl "180+2"]
[Date "2023.02.28"]
[WhiteClock "0:00:07"]
[BlackClock "0:00:57"]

1. d4 {[%clk 0:03:00]}  Nf6 {[%clk 0:02:59]} 2. Nc3 {[%clk 0:03:01]}  d5 {[%clk 0:02:59]} 3. Bf4 {[%clk 0:03:02]}  e6 {[%clk 0:02:59]} 4. Nb5 {[%clk 0:03:01]}  Bb4+ {[%clk 0:02:58]} 5. c3 {[%clk 0:03:01]}  Ba5 {[%clk 0:02:59]} 6. a4 {[%clk 0:03:02]}  a6 {[%clk 0:02:48]} 7. b4 {[%clk 0:03:01]}  Bxb4 {[%clk 0:02:47]} 8. cxb4 {[%clk 0:03:00]}  axb5 {[%clk 0:02:47]} 9. axb5 {[%clk 0:03:01]}  Rxa1 {[%clk 0:02:47]} 10. Qxa1 {[%clk 0:03:02]}  Nh5 {[%clk 0:02:46]} 11. Be5 {[%clk 0:02:48]}  Nd7 {[%clk 0:02:43]} 12. Nf3 {[%clk 0:02:33]}  O-O {[%clk 0:02:12]} 13. e3 {[%clk 0:02:33]}  f6 {[%clk 0:02:11]} 14. Bg3 {[%clk 0:02:31]}  Nb6 {[%clk 0:02:06]} 15. Qc3 {[%clk 0:02:28]}  Nxg3 {[%clk 0:02:04]} 16. hxg3 {[%clk 0:02:29]}  g6 {[%clk 0:02:03]} 17. Bd3 {[%clk 0:02:28]}  Bd7 {[%clk 0:02:03]} 18. O-O {[%clk 0:02:25]}  Be8 {[%clk 0:02:01]} 19. Rc1 {[%clk 0:02:24]}  Rf7 {[%clk 0:02:01]} 20. Qa3 {[%clk 0:02:21]}  Qb8 {[%clk 0:01:56]} 21. Ra1 {[%clk 0:02:00]}  Kg7 {[%clk 0:01:54]} 22. Qc3 {[%clk 0:01:54]}  Nc8 {[%clk 0:01:45]} 23. Nd2 {[%clk 0:01:45]}  Nd6 {[%clk 0:01:45]} 24. Nb3 {[%clk 0:01:36]}  Bxb5 {[%clk 0:01:40]} 25. Nc5 {[%clk 0:01:35]}  Qc8 {[%clk 0:01:37]} 26. Bxb5 {[%clk 0:01:06]}  Nxb5 {[%clk 0:01:38]} 27. Qd3 {[%clk 0:01:04]}  c6 {[%clk 0:01:34]} 28. Rc1 {[%clk 0:00:54]}  b6 {[%clk 0:01:31]} 29. Nb3 {[%clk 0:00:53]}  Rc7 {[%clk 0:01:28]} 30. e4 {[%clk 0:00:51]}  Qd7 {[%clk 0:01:27]} 31. e5 {[%clk 0:00:32]}  fxe5 {[%clk 0:01:23]} 32. dxe5 {[%clk 0:00:33]}  Qe7 {[%clk 0:01:23]} 33. Nd4 {[%clk 0:00:32]}  Nxd4 {[%clk 0:01:22]} 34. Qxd4 {[%clk 0:00:33]}  c5 {[%clk 0:01:23]} 35. Qd3 {[%clk 0:00:30]}  c4 {[%clk 0:01:22]} 36. Qc3 {[%clk 0:00:29]}  Ra7 {[%clk 0:01:21]} 37. Rb1 {[%clk 0:00:27]}  Ra2 {[%clk 0:01:18]} 38. Qd4 {[%clk 0:00:25]}  Qa7 {[%clk 0:01:15]} 39. Qf4 {[%clk 0:00:25]}  Qf7 {[%clk 0:01:15]} 40. Qd4 {[%clk 0:00:25]}  b5 {[%clk 0:01:16]} 41. Qc5 {[%clk 0:00:25]}  Qa7 {[%clk 0:01:13]} 42. f3 {[%clk 0:00:09]}  Qxc5+ {[%clk 0:01:11]} 43. bxc5 {[%clk 0:00:10]}  c3 {[%clk 0:01:07]} 44. c6 {[%clk 0:00:10]}  Ra6 {[%clk 0:01:02]} 45. Rxb5 {[%clk 0:00:06]}  Rxc6 {[%clk 0:01:01]} 46. Rb1 {[%clk 0:00:07]}  d4 {[%clk 0:01:01]} 47. Kf2 {[%clk 0:00:07]}  d3 {[%clk 0:00:58]} 48. Ke1 {[%clk 0:00:07]}  d2+ {[%clk 0:00:57]} 0-1


[Site "https://www.chess.com"]

[Event "Titled Tuesday Blitz February 28 Early 2023"]
[White "Itgelt, Khuyagtsogt"]
[Black "Sanal, Vahap"]
[WhiteFideId "4902912"]
[BlackFideId "6300545"]
[WhiteElo "2227"]
[BlackElo "2605"]
[Result "0-1"]
[Round "02"]
[TimeControl "180+2"]
[Date "2023.02.28"]
[WhiteClock "0:00:41"]
[BlackClock "0:01:36"]

1. d4 {[%clk 0:03:00]}  d6 {[%clk 0:03:00]} 2. Nf3 {[%clk 0:03:01]}  Nf6 {[%clk 0:03:00]} 3. g3 {[%clk 0:02:54]}  Nbd7 {[%clk 0:02:59]} 4. Bg2 {[%clk 0:02:55]}  e5 {[%clk 0:03:00]} 5. c4 {[%clk 0:02:53]}  c6 {[%clk 0:02:59]} 6. Nc3 {[%clk 0:02:53]}  Be7 {[%clk 0:02:56]} 7. O-O {[%clk 0:02:51]}  e4 {[%clk 0:02:48]} 8. Nd2 {[%clk 0:02:02]}  d5 {[%clk 0:02:46]} 9. cxd5 {[%clk 0:02:02]}  cxd5 {[%clk 0:02:47]} 10. a3 {[%clk 0:01:46]}  O-O {[%clk 0:02:46]} 11. b4 {[%clk 0:01:45]}  a5 {[%clk 0:02:44]} 12. b5 {[%clk 0:01:44]}  Nb6 {[%clk 0:02:44]} 13. Nb3 {[%clk 0:01:43]}  Nc4 {[%clk 0:02:41]} 14. Nd2 {[%clk 0:01:35]}  Nb6 {[%clk 0:02:41]} 15. Nb3 {[%clk 0:01:35]}  Bf5 {[%clk 0:02:33]} 16. Nc5 {[%clk 0:01:33]}  Qc8 {[%clk 0:02:28]} 17. N3a4 {[%clk 0:01:31]}  Nc4 {[%clk 0:02:27]} 18. b6 {[%clk 0:01:20]}  Nd7 {[%clk 0:02:19]} 19. Bf4 {[%clk 0:01:09]}  Ndxb6 {[%clk 0:02:06]} 20. Nxb6 {[%clk 0:01:09]}  Nxb6 {[%clk 0:02:06]} 21. Rb1 {[%clk 0:01:09]}  Nc4 {[%clk 0:02:01]} 22. Rxb7 {[%clk 0:00:59]}  Bxc5 {[%clk 0:01:49]} 23. Rc7 {[%clk 0:01:00]}  Qe6 {[%clk 0:01:45]} 24. dxc5 {[%clk 0:00:52]}  Nxa3 {[%clk 0:01:37]} 25. Qa4 {[%clk 0:00:46]}  Nc4 {[%clk 0:01:36]} 26. Rd1 {[%clk 0:00:41]}  Nb2 {[%clk 0:01:36]} 0-1


[Site "https://www.chess.com"]

[Event "Titled Tuesday Blitz February 28 Early 2023"]
[White "Manukyan, Sargis A."]
[Black "Chigaev, Maksim"]
[WhiteFideId "13303970"]
[BlackFideId "4108116"]
[WhiteElo "2187"]
[BlackElo "2547"]
[Result "1-0"]
[Round "02"]
[TimeControl "180+2"]
[Date "2023.02.28"]
[WhiteClock "0:00:37"]
[BlackClock "0:00:05"]

1. d4 {[%clk 0:03:00]}  Nf6 {[%clk 0:02:59]} 2. c4 {[%clk 0:03:01]}  c6 {[%clk 0:02:58]} 3. Nc3 {[%clk 0:03:02]}  d5 {[%clk 0:02:58]} 4. e3 {[%clk 0:03:00]}  a6 {[%clk 0:02:57]} 5. Nf3 {[%clk 0:03:00]}  b5 {[%clk 0:02:56]} 6. b3 {[%clk 0:02:56]}  Bg4 {[%clk 0:02:56]} 7. Qc2 {[%clk 0:02:56]}  Bxf3 {[%clk 0:02:52]} 8. gxf3 {[%clk 0:02:56]}  e6 {[%clk 0:02:49]} 9. f4 {[%clk 0:02:56]}  g6 {[%clk 0:02:21]} 10. c5 {[%clk 0:02:56]}  Nbd7 {[%clk 0:02:18]} 11. a3 {[%clk 0:02:52]}  Ng4 {[%clk 0:02:07]} 12. Ne2 {[%clk 0:02:35]}  Be7 {[%clk 0:02:02]} 13. Bb2 {[%clk 0:02:34]}  h5 {[%clk 0:01:54]} 14. h3 {[%clk 0:02:30]}  Nh6 {[%clk 0:01:54]} 15. Ng1 {[%clk 0:02:29]}  Nf5 {[%clk 0:01:52]} 16. Nf3 {[%clk 0:02:28]}  Nh4 {[%clk 0:01:52]} 17. Nxh4 {[%clk 0:02:14]}  Bxh4 {[%clk 0:01:52]} 18. Bd3 {[%clk 0:02:15]}  a5 {[%clk 0:01:21]} 19. O-O-O {[%clk 0:02:10]}  Qe7 {[%clk 0:01:19]} 20. Rdg1 {[%clk 0:01:56]}  Kf8 {[%clk 0:01:19]} 21. Qe2 {[%clk 0:01:53]}  Nf6 {[%clk 0:01:15]} 22. f3 {[%clk 0:01:52]}  Nd7 {[%clk 0:01:15]} 23. Kb1 {[%clk 0:01:46]}  Qf6 {[%clk 0:01:09]} 24. Ka2 {[%clk 0:01:45]}  Rb8 {[%clk 0:01:00]} 25. Qd2 {[%clk 0:01:38]}  b4 {[%clk 0:00:58]} 26. a4 {[%clk 0:01:37]}  Ke8 {[%clk 0:00:57]} 27. Rg2 {[%clk 0:01:27]}  Kd8 {[%clk 0:00:56]} 28. Rhg1 {[%clk 0:01:19]}  Kc7 {[%clk 0:00:54]} 29. Bc2 {[%clk 0:01:18]}  Kb7 {[%clk 0:00:52]} 30. Qe2 {[%clk 0:01:17]}  Ka7 {[%clk 0:00:47]} 31. Bd3 {[%clk 0:01:17]}  Rbe8 {[%clk 0:00:41]} 32. Qc2 {[%clk 0:01:17]}  Rhg8 {[%clk 0:00:39]} 33. Be2 {[%clk 0:01:17]}  Kb7 {[%clk 0:00:35]} 34. Qd3 {[%clk 0:01:18]}  Kc7 {[%clk 0:00:34]} 35. Qd2 {[%clk 0:01:13]}  Rb8 {[%clk 0:00:33]} 36. Bd3 {[%clk 0:01:13]}  Rbd8 {[%clk 0:00:32]} 37. Qe2 {[%clk 0:01:00]}  Qh8 {[%clk 0:00:29]} 38. Rd1 {[%clk 0:00:55]}  Kb7 {[%clk 0:00:20]} 39. Ba6+ {[%clk 0:00:54]}  Ka7 {[%clk 0:00:20]} 40. Bd3 {[%clk 0:00:55]}  f5 {[%clk 0:00:20]} 41. Rdg1 {[%clk 0:00:54]}  Qh7 {[%clk 0:00:19]} 42. Ba6 {[%clk 0:00:51]}  Nb8 {[%clk 0:00:15]} 43. Bd3 {[%clk 0:00:48]}  Rde8 {[%clk 0:00:15]} 44. Bc1 {[%clk 0:00:47]}  Re7 {[%clk 0:00:15]} 45. Qc2 {[%clk 0:00:47]}  Reg7 {[%clk 0:00:13]} 46. Bd2 {[%clk 0:00:47]}  Nd7 {[%clk 0:00:13]} 47. Be2 {[%clk 0:00:47]}  Kb7 {[%clk 0:00:11]} 48. Qd3 {[%clk 0:00:47]}  Nb8 {[%clk 0:00:11]} 49. Qb1 {[%clk 0:00:46]}  g5 {[%clk 0:00:11]} 50. fxg5 {[%clk 0:00:42]}  Rxg5 {[%clk 0:00:11]} 51. Rxg5 {[%clk 0:00:41]}  Rxg5 {[%clk 0:00:11]} 52. Rxg5 {[%clk 0:00:42]}  Bxg5 {[%clk 0:00:08]} 53. f4 {[%clk 0:00:42]}  Bf6 {[%clk 0:00:05]} 54. Qg1 {[%clk 0:00:43]}  h4 {[%clk 0:00:06]} 55. Qg2 {[%clk 0:00:42]}  Be7 {[%clk 0:00:06]} 56. Be1 {[%clk 0:00:43]}  Nd7 {[%clk 0:00:06]} 57. Bf1 {[%clk 0:00:42]}  Bf6 {[%clk 0:00:05]} 58. Qe2 {[%clk 0:00:42]}  Nb8 {[%clk 0:00:05]} 59. Qg2 {[%clk 0:00:42]}  Bd8 {[%clk 0:00:05]} 60. Be2 {[%clk 0:00:40]}  Qf7 {[%clk 0:00:06]} 61. Qf3 {[%clk 0:00:41]}  Bf6 {[%clk 0:00:06]} 62. Qh5 {[%clk 0:00:40]}  Qxh5 {[%clk 0:00:06]} 63. Bxh5 {[%clk 0:00:41]}  Kc7 {[%clk 0:00:06]} 64. Be8 {[%clk 0:00:36]}  Kd8 {[%clk 0:00:05]} 65. Bf7 {[%clk 0:00:37]} 1-0


[Site "https://www.chess.com"]

[Event "Titled Tuesday Blitz February 28 Early 2023"]
[White "Timofeev, Artyom"]
[Black "Al-Tarboush, Ward"]
[WhiteFideId "4140419"]
[BlackFideId "7601450"]
[WhiteElo "2586"]
[BlackElo "2267"]
[Result "1-0"]
[Round "02"]
[TimeControl "180+2"]
[Date "2023.02.28"]
[WhiteClock "0:00:46"]
[BlackClock "0:00:02"]

1. c4 {[%clk 0:03:00]}  c5 {[%clk 0:02:57]} 2. Nf3 {[%clk 0:02:58]}  Nc6 {[%clk 0:02:56]} 3. Nc3 {[%clk 0:02:58]}  Nf6 {[%clk 0:02:53]} 4. g3 {[%clk 0:02:54]}  e5 {[%clk 0:02:52]} 5. Bg2 {[%clk 0:02:53]}  d6 {[%clk 0:02:44]} 6. O-O {[%clk 0:02:52]}  Be6 {[%clk 0:02:44]} 7. d3 {[%clk 0:02:50]}  Be7 {[%clk 0:02:37]} 8. Ng5 {[%clk 0:02:44]}  Bf5 {[%clk 0:02:20]} 9. Rb1 {[%clk 0:02:41]}  O-O {[%clk 0:02:17]} 10. a3 {[%clk 0:02:41]}  h6 {[%clk 0:02:17]} 11. Nge4 {[%clk 0:02:40]}  Nxe4 {[%clk 0:02:16]} 12. Nxe4 {[%clk 0:02:38]}  a5 {[%clk 0:02:10]} 13. Nc3 {[%clk 0:02:37]}  Be6 {[%clk 0:02:05]} 14. Bd2 {[%clk 0:02:36]}  Bg5 {[%clk 0:01:56]} 15. e3 {[%clk 0:02:35]}  f5 {[%clk 0:01:51]} 16. Nd5 {[%clk 0:02:35]}  Rb8 {[%clk 0:01:29]} 17. b4 {[%clk 0:02:25]}  axb4 {[%clk 0:01:25]} 18. axb4 {[%clk 0:02:24]}  b5 {[%clk 0:00:59]} 19. cxb5 {[%clk 0:02:11]}  Rxb5 {[%clk 0:00:52]} 20. Qa4 {[%clk 0:01:48]}  Qb8 {[%clk 0:00:33]} 21. Nc7 {[%clk 0:01:43]}  Qxc7 {[%clk 0:00:26]} 22. Qxb5 {[%clk 0:01:42]}  Nxb4 {[%clk 0:00:23]} 23. Bxb4 {[%clk 0:01:42]}  cxb4 {[%clk 0:00:19]} 24. Bd5 {[%clk 0:01:25]}  Qf7 {[%clk 0:00:16]} 25. Bxe6 {[%clk 0:01:21]}  Qxe6 {[%clk 0:00:17]} 26. Rxb4 {[%clk 0:01:21]}  f4 {[%clk 0:00:16]} 27. exf4 {[%clk 0:01:10]}  exf4 {[%clk 0:00:16]} 28. Re4 {[%clk 0:01:10]}  Qh3 {[%clk 0:00:16]} 29. Re8 {[%clk 0:00:48]}  f3 {[%clk 0:00:05]} 30. Rxf8+ {[%clk 0:00:46]}  Kxf8 {[%clk 0:00:03]} 31. Qb8+ {[%clk 0:00:46]}  Ke7 {[%clk 0:00:02]} 32. Qb7+ {[%clk 0:00:46]} 1-0


[Site "https://www.chess.com"]